[Event "Live Chess"]
[Site "Chess.com"]
[Date "2023.05.21"]
[Round "-"]
[White "Tilbs_12"]
[Black "WilliWeisswurst"]
[Result "0-1"]
[WhiteElo "1584"]
[BlackElo "1776"]
[TimeControl "300"]
[EndTime "4:50:52 PDT"]
[Termination "WilliWeisswurst won on time"]

1. e4 {[%clk 0:04:58.3]} 1... c5 {[%clk 0:04:59.4]} 2. c3 {[%clk 0:04:57.2]}
2... d6 {[%clk 0:04:58.9]} 3. d4 {[%clk 0:04:55.8]} 3... cxd4 {[%clk 0:04:58.8]}
4. cxd4 {[%clk 0:04:55.5]} 4... Nf6 {[%clk 0:04:58.1]} 5. Nc3 {[%clk 0:04:54.5]}
5... e6 {[%clk 0:04:57.2]} 6. Nf3 {[%clk 0:04:53.3]} 6... Be7 {[%clk 0:04:56.6]}
7. Bd3 {[%clk 0:04:50.7]} 7... a6 {[%clk 0:04:55.8]} 8. a3 {[%clk 0:04:46.8]}
8... O-O {[%clk 0:04:55.2]} 9. O-O {[%clk 0:04:45]} 9... b5 {[%clk 0:04:54.2]}
10. b4 {[%clk 0:04:43.9]} 10... Bb7 {[%clk 0:04:53.3]} 11. Bb2 {[%clk
0:04:41.1]} 11... h6 {[%clk 0:04:52]} 12. Re1 {[%clk 0:04:39]} 12... Nbd7 {[%clk
0:04:45.2]} 13. Rc1 {[%clk 0:04:37.4]} 13... Rc8 {[%clk 0:04:43.8]} 14. Qd2
{[%clk 0:04:19.3]} 14... Nh7 {[%clk 0:04:33.6]} 15. d5 {[%clk 0:04:05.5]} 15...
exd5 {[%clk 0:04:28.1]} 16. exd5 {[%clk 0:04:03.7]} 16... Nb6 {[%clk 0:04:19.7]}
17. Be4 {[%clk 0:03:27.9]} 17... Nc4 {[%clk 0:04:17.2]} 18. Qc2 {[%clk
0:03:24.3]} 18... Nf6 {[%clk 0:04:13.8]} 19. Rcd1 {[%clk 0:03:08.2]} 19... Nxe4
{[%clk 0:04:10.9]} 20. Rxe4 {[%clk 0:03:06.8]} 20... Nxb2 {[%clk 0:03:54]} 21.
Qxb2 {[%clk 0:03:05.7]} 21... Bf6 {[%clk 0:03:53.4]} 22. Re3 {[%clk 0:02:56]}
22... Rc7 {[%clk 0:03:08.4]} 23. Qb3 {[%clk 0:02:52.1]} 23... Re8 {[%clk
0:02:57.6]} 24. Ne4 {[%clk 0:02:44.3]} 24... Be5 {[%clk 0:02:37.9]} 25. Nxe5
{[%clk 0:02:42.4]} 25... Rxe5 {[%clk 0:02:32]} 26. g3 {[%clk 0:02:21.5]} 26...
Rc4 {[%clk 0:02:06.2]} 27. Qd3 {[%clk 0:01:54.9]} 27... Qe7 {[%clk 0:01:44.4]}
28. Nd2 {[%clk 0:01:50.2]} 28... Rc7 {[%clk 0:01:27.8]} 29. Rxe5 {[%clk
0:01:41.6]} 29... Qxe5 {[%clk 0:01:27.7]} 30. Nf3 {[%clk 0:01:39.7]} 30... Qb2
{[%clk 0:01:17.6]} 31. Rd2 {[%clk 0:01:29]} 31... Qc1+ {[%clk 0:01:13.6]} 32.
Kg2 {[%clk 0:01:27.2]} 32... Qc4 {[%clk 0:01:12.1]} 33. Nh4 {[%clk 0:01:16.8]}
33... Re7 {[%clk 0:00:46.5]} 34. Nf5 {[%clk 0:01:10]} 34... Re5 {[%clk
0:00:44.9]} 35. Qxc4 {[%clk 0:00:49.8]} 35... bxc4 {[%clk 0:00:43.1]} 36. Ne3
{[%clk 0:00:49.4]} 36... c3 {[%clk 0:00:41.7]} 37. Rc2 {[%clk 0:00:41.3]} 37...
Bxd5+ {[%clk 0:00:41]} 38. Nxd5 {[%clk 0:00:40.5]} 38... Rxd5 {[%clk 0:00:40.2]}
39. Rxc3 {[%clk 0:00:40.1]} 39... f6 {[%clk 0:00:33.7]} 40. Kf3 {[%clk
0:00:39.5]} 40... Kf7 {[%clk 0:00:33.3]} 41. Ke4 {[%clk 0:00:38.8]} 41... Ke6
{[%clk 0:00:32.4]} 42. Rc8 {[%clk 0:00:36.3]} 42... Re5+ {[%clk 0:00:31.3]} 43.
Kd3 {[%clk 0:00:34.6]} 43... Rb5 {[%clk 0:00:30.8]} 44. Ra8 {[%clk 0:00:30]}
44... Rb6 {[%clk 0:00:29.2]} 45. Kc4 {[%clk 0:00:28.1]} 45... Kd7 {[%clk
0:00:27]} 46. a4 {[%clk 0:00:22.4]} 46... Ke6 {[%clk 0:00:24.3]} 47. Re8+ {[%clk
0:00:19.4]} 47... Kf7 {[%clk 0:00:23.2]} 48. Rc8 {[%clk 0:00:18.1]} 48... Ke6
{[%clk 0:00:22.6]} 49. Rc7 {[%clk 0:00:17]} 49... g5 {[%clk 0:00:20.5]} 50. a5
{[%clk 0:00:14.6]} 50... Rb5 {[%clk 0:00:19.1]} 51. Rc6 {[%clk 0:00:13.6]} 51...
Ke5 {[%clk 0:00:17]} 52. Rxa6 {[%clk 0:00:12.6]} 52... Rb8 {[%clk 0:00:16.2]}
53. Rc6 {[%clk 0:00:11.7]} 53... d5+ {[%clk 0:00:15.5]} 54. Kc5 {[%clk
0:00:10.8]} 54... d4 {[%clk 0:00:15]} 55. Rd6 {[%clk 0:00:09.5]} 55... Rc8+
{[%clk 0:00:14.3]} 56. Rc6 {[%clk 0:00:08.6]} 56... Rxc6+ {[%clk 0:00:13.6]} 57.
Kxc6 {[%clk 0:00:08.1]} 57... d3 {[%clk 0:00:13.5]} 58. b5 {[%clk 0:00:07.8]}
58... d2 {[%clk 0:00:13.3]} 59. b6 {[%clk 0:00:07.7]} 59... d1=Q {[%clk
0:00:13]} 60. b7 {[%clk 0:00:07.6]} 60... Qc2+ {[%clk 0:00:12.4]} 61. Kb6 {[%clk
0:00:06.5]} 61... Qb3+ {[%clk 0:00:11.7]} 62. Ka7 {[%clk 0:00:05.6]} 62... Qf7
{[%clk 0:00:08.1]} 63. Ka8 {[%clk 0:00:03.4]} 63... Qd5 {[%clk 0:00:06.8]} 64.
Ka7 {[%clk 0:00:02.4]} 64... Qf7 {[%clk 0:00:05.7]} 65. a6 {[%clk 0:00:01]}
65... Qd7 {[%clk 0:00:04.6]} 0-1

[Event "Live Chess"]
[Site "Chess.com"]
[Date "2023.05.21"]
[Round "-"]
[White "jbooth"]
[Black "srichess4u"]
[Result "1-0"]
[WhiteElo "1717"]
[BlackElo "652"]
[TimeControl "300"]
[EndTime "4:50:52 PDT"]
[Termination "jbooth won by checkmate"]

1. e4 {[%clk 0:04:57.2]} 1... e5 {[%clk 0:04:57.8]} 2. Bc4 {[%clk 0:04:54.5]}
2... Nf6 {[%clk 0:04:54.6]} 3. Nc3 {[%clk 0:04:53.7]} 3... Nc6 {[%clk
0:04:52.8]} 4. d3 {[%clk 0:04:52.4]} 4... Bb4 {[%clk 0:04:47.2]} 5. Ne2 {[%clk
0:04:47.4]} 5... O-O {[%clk 0:04:45]} 6. O-O {[%clk 0:04:46]} 6... d6 {[%clk
0:04:42.6]} 7. f4 {[%clk 0:04:44.3]} 7... Bg4 {[%clk 0:04:37.6]} 8. Qe1 {[%clk
0:04:39.2]} 8... h6 {[%clk 0:04:30.1]} 9. f5 {[%clk 0:04:37.5]} 9... g6 {[%clk
0:04:27.1]} 10. h3 {[%clk 0:04:32.8]} 10... Bh5 {[%clk 0:04:22]} 11. Bxh6 {[%clk
0:04:29.8]} 11... Re8 {[%clk 0:04:17]} 12. Bg5 {[%clk 0:04:28.7]} 12... Nd4
{[%clk 0:04:08.9]} 13. Nxd4 {[%clk 0:04:24.8]} 13... exd4 {[%clk 0:04:07]} 14.
a3 {[%clk 0:04:17.8]} 14... Bxc3 {[%clk 0:04:03.6]} 15. bxc3 {[%clk 0:04:15.5]}
15... dxc3 {[%clk 0:04:02.2]} 16. fxg6 {[%clk 0:04:13]} 16... Bxg6 {[%clk
0:03:54.7]} 17. Bxf6 {[%clk 0:04:11.7]} 17... Qd7 {[%clk 0:03:49.2]} 18. Qh4
{[%clk 0:04:10]} 18... Bh7 {[%clk 0:03:31.6]} 19. Qg5+ {[%clk 0:04:05.2]} 19...
Bg6 {[%clk 0:03:26.9]} 20. Qh6 {[%clk 0:04:03.7]} 20... Bh7 {[%clk 0:02:41.2]}
21. Qg7# {[%clk 0:04:01.4]} 1-0

[Event "Live Chess"]
[Site "Chess.com"]
[Date "2023.05.21"]
[Round "-"]
[White "Chesscoach_Golichenko"]
[Black "Conradical12"]
[Result "1-0"]
[WhiteElo "2612"]
[BlackElo "1571"]
[TimeControl "300"]
[EndTime "4:50:56 PDT"]
[Termination "Chesscoach_Golichenko won by resignation"]

1. d4 {[%clk 0:04:53.1]} 1... h6 {[%clk 0:04:59.9]} 2. c4 {[%clk 0:04:50.2]}
2... h5 {[%clk 0:04:59.8]} 3. e4 {[%clk 0:04:48.1]} 3... h4 {[%clk 0:04:59.7]}
4. h3 {[%clk 0:04:46.5]} 4... a6 {[%clk 0:04:57.8]} 5. Nc3 {[%clk 0:04:45.1]}
5... a5 {[%clk 0:04:57.7]} 6. f4 {[%clk 0:04:44.3]} 6... a4 {[%clk 0:04:57.6]}
7. Nxa4 {[%clk 0:04:42]} 7... Ra5 {[%clk 0:04:55]} 8. b4 {[%clk 0:04:38.2]} 8...
g6 {[%clk 0:04:49.9]} 9. bxa5 {[%clk 0:04:36.8]} 9... g5 {[%clk 0:04:49.8]} 10.
f5 {[%clk 0:04:34.8]} 10... f6 {[%clk 0:04:44.4]} 11. Be2 {[%clk 0:04:33.8]} 1-0

[Event "Live Chess"]
[Site "Chess.com"]
[Date "2023.05.21"]
[Round "-"]
[White "booktrunk"]
[Black "TheKingKeir"]
[Result "0-1"]
[WhiteElo "1278"]
[BlackElo "1516"]
[TimeControl "300"]
[EndTime "4:51:00 PDT"]
[Termination "TheKingKeir won by resignation"]

1. d4 {[%clk 0:04:59.4]} 1... d5 {[%clk 0:04:58.6]} 2. Nf3 {[%clk 0:04:57.6]}
2... Nf6 {[%clk 0:04:57.7]} 3. h3 {[%clk 0:04:56.6]} 3... Bf5 {[%clk 0:04:56.6]}
4. Nc3 {[%clk 0:04:54.8]} 4... e6 {[%clk 0:04:55]} 5. Nh4 {[%clk 0:04:49.7]}
5... Bd6 {[%clk 0:04:46.8]} 6. Nxf5 {[%clk 0:04:48.2]} 6... exf5 {[%clk
0:04:45.8]} 7. Qd3 {[%clk 0:04:47.5]} 7... Ne4 {[%clk 0:04:40.3]} 8. Nxe4 {[%clk
0:04:42.6]} 8... fxe4 {[%clk 0:04:40.2]} 9. Qe3 {[%clk 0:04:41]} 9... O-O {[%clk
0:04:37.3]} 10. Bd2 {[%clk 0:04:39.1]} 10... Nd7 {[%clk 0:04:31.3]} 11. f3
{[%clk 0:04:37]} 11... Bg3+ {[%clk 0:04:21.4]} 12. Kd1 {[%clk 0:04:35.8]} 12...
Nf6 {[%clk 0:04:11.1]} 13. f4 {[%clk 0:04:29.9]} 13... Bh4 {[%clk 0:03:45.6]}
14. f5 {[%clk 0:04:28]} 14... h6 {[%clk 0:03:40.9]} 15. Bb4 {[%clk 0:04:22.6]}
15... Bg5 {[%clk 0:03:31.7]} 16. Qg3 {[%clk 0:04:19.3]} 16... Re8 {[%clk
0:03:27.5]} 17. h4 {[%clk 0:04:16.8]} 17... Nh5 {[%clk 0:03:19.2]} 18. Qf2
{[%clk 0:04:15.3]} 18... Bf4 {[%clk 0:03:14.4]} 19. g4 {[%clk 0:03:58.5]} 19...
Ng3 {[%clk 0:02:49]} 20. Qxf4 {[%clk 0:03:47.7]} 20... Nxh1 {[%clk 0:02:45.8]}
21. Qh2 {[%clk 0:03:46.8]} 21... a5 {[%clk 0:02:28.6]} 22. Bd2 {[%clk 0:03:36]}
22... c5 {[%clk 0:02:25]} 23. dxc5 {[%clk 0:03:32.7]} 23... e3 {[%clk
0:02:21.2]} 24. Bc3 {[%clk 0:03:31.8]} 24... d4 {[%clk 0:02:18.7]} 25. Bd2
{[%clk 0:03:22.4]} 25... Qd5 {[%clk 0:01:59.2]} 26. Be1 {[%clk 0:03:18.2]} 26...
Nf2+ {[%clk 0:01:31.1]} 27. Bxf2 {[%clk 0:03:16.6]} 27... exf2 {[%clk 0:01:31]}
28. Qxf2 {[%clk 0:03:15.6]} 28... Qxc5 {[%clk 0:01:29.2]} 29. Bg2 {[%clk
0:03:14.2]} 29... Rac8 {[%clk 0:01:27.5]} 30. Rc1 {[%clk 0:03:11.6]} 30... d3
{[%clk 0:01:23.5]} 31. exd3 {[%clk 0:03:09.7]} 31... Qxf2 {[%clk 0:01:21.9]} 0-1

[Event "Live Chess"]
[Site "Chess.com"]
[Date "2023.05.21"]
[Round "-"]
[White "gmnorfolk"]
[Black "CeladonFish"]
[Result "1-0"]
[WhiteElo "2126"]
[BlackElo "1096"]
[TimeControl "300"]
[EndTime "4:51:08 PDT"]
[Termination "gmnorfolk won by resignation"]

1. d4 {[%clk 0:04:56.1]} 1... Nf6 {[%clk 0:04:58.3]} 2. c4 {[%clk 0:04:52.5]}
2... g6 {[%clk 0:04:57.4]} 3. Nc3 {[%clk 0:04:50.8]} 3... Bg7 {[%clk 0:04:56.7]}
4. e4 {[%clk 0:04:49.6]} 4... O-O {[%clk 0:04:55.6]} 5. Be2 {[%clk 0:04:48.2]}
5... d6 {[%clk 0:04:49.7]} 6. Be3 {[%clk 0:04:48.1]} 6... b6 {[%clk 0:04:48]} 7.
Bc1 {[%clk 0:04:48]} 7... c5 {[%clk 0:04:47.4]} 8. Be3 {[%clk 0:04:47.9]} 8...
e5 {[%clk 0:04:39.8]} 9. dxe5 {[%clk 0:04:40.7]} 9... dxe5 {[%clk 0:04:36.7]}
10. Qxd8 {[%clk 0:04:39.8]} 10... Rxd8 {[%clk 0:04:36.3]} 11. Bg5 {[%clk
0:04:38.4]} 11... Rd6 {[%clk 0:04:32.1]} 12. Rd1 {[%clk 0:04:06]} 12... Rxd1+
{[%clk 0:04:30.3]} 13. Kxd1 {[%clk 0:04:04.7]} 13... Na6 {[%clk 0:04:29.5]} 14.
f3 {[%clk 0:03:59.8]} 14... Nb4 {[%clk 0:04:27.7]} 15. a3 {[%clk 0:03:53.5]}
15... Nc6 {[%clk 0:04:25.6]} 16. Nd5 {[%clk 0:03:52.3]} 16... Nxd5 {[%clk
0:04:19]} 17. cxd5 {[%clk 0:03:49.2]} 17... Nd4 {[%clk 0:04:18.7]} 18. Be3
{[%clk 0:03:41.1]} 18... c4 {[%clk 0:04:13.1]} 19. Bxc4 {[%clk 0:03:38.3]} 19...
Bb7 {[%clk 0:04:11.1]} 20. Ne2 {[%clk 0:03:36.5]} 20... Nxe2 {[%clk 0:04:09.3]}
21. Kxe2 {[%clk 0:03:35.4]} 21... Rc8 {[%clk 0:04:05.7]} 22. Kd3 {[%clk
0:03:27.9]} 22... f5 {[%clk 0:04:00.6]} 23. Rc1 {[%clk 0:03:20.8]} 23... fxe4+
{[%clk 0:03:59.7]} 24. fxe4 {[%clk 0:03:18]} 24... Ba6 {[%clk 0:03:58.4]} 25.
Bxa6 {[%clk 0:03:16]} 1-0

[Event "Live Chess"]
[Site "Chess.com"]
[Date "2023.05.21"]
[Round "-"]
[White "Doge_Dandolo"]
[Black "domrobson"]
[Result "1-0"]
[WhiteElo "1892"]
[BlackElo "1711"]
[TimeControl "300"]
[EndTime "4:51:11 PDT"]
[Termination "Doge_Dandolo won by resignation"]

1. Nf3 {[%clk 0:04:55.6]} 1... Nf6 {[%clk 0:04:58.6]} 2. c4 {[%clk 0:04:54.5]}
2... e6 {[%clk 0:04:57.3]} 3. g3 {[%clk 0:04:53.3]} 3... d5 {[%clk 0:04:56.3]}
4. Bg2 {[%clk 0:04:52.4]} 4... c6 {[%clk 0:04:55.9]} 5. O-O {[%clk 0:04:51.1]}
5... Nbd7 {[%clk 0:04:55.3]} 6. d4 {[%clk 0:04:50.4]} 6... Bd6 {[%clk
0:04:53.2]} 7. Qc2 {[%clk 0:04:49.5]} 7... O-O {[%clk 0:04:52.1]} 8. Nbd2 {[%clk
0:04:48]} 8... Re8 {[%clk 0:04:51.3]} 9. e4 {[%clk 0:04:47]} 9... dxe4 {[%clk
0:04:50.1]} 10. Nxe4 {[%clk 0:04:45.8]} 10... Nxe4 {[%clk 0:04:49]} 11. Qxe4
{[%clk 0:04:44.9]} 11... Nf6 {[%clk 0:04:47.9]} 12. Qc2 {[%clk 0:04:43.6]} 12...
b6 {[%clk 0:04:46.5]} 13. Bg5 {[%clk 0:04:40]} 13... Bb7 {[%clk 0:04:45.6]} 14.
Rad1 {[%clk 0:04:38.2]} 14... Be7 {[%clk 0:04:44.7]} 15. Ne5 {[%clk 0:04:33.4]}
15... Qc7 {[%clk 0:04:43.2]} 16. Rfe1 {[%clk 0:04:28.2]} 16... Rac8 {[%clk
0:04:42.1]} 17. a3 {[%clk 0:04:19.3]} 17... h6 {[%clk 0:04:32.6]} 18. Bf4 {[%clk
0:04:16.2]} 18... Bd6 {[%clk 0:04:31]} 19. c5 {[%clk 0:04:12.3]} 19... bxc5
{[%clk 0:04:14.7]} 20. dxc5 {[%clk 0:04:08.6]} 20... Bxe5 {[%clk 0:04:07.6]} 21.
Bxe5 {[%clk 0:04:07.5]} 21... Qe7 {[%clk 0:04:06.7]} 22. Bxf6 {[%clk 0:03:58.8]}
22... Qxf6 {[%clk 0:04:04.9]} 23. Rd6 {[%clk 0:03:51.1]} 23... Red8 {[%clk
0:03:58.2]} 24. Red1 {[%clk 0:03:49.6]} 24... Ba8 {[%clk 0:03:55.9]} 25. b4
{[%clk 0:03:47.3]} 25... Rxd6 {[%clk 0:03:51.7]} 26. Rxd6 {[%clk 0:03:43.6]}
26... Rd8 {[%clk 0:03:51.3]} 27. Qd3 {[%clk 0:03:38.2]} 1-0

[Event "Live Chess"]
[Site "Chess.com"]
[Date "2023.05.21"]
[Round "-"]
[White "GEMdzq"]
[Black "Reggie016"]
[Result "1-0"]
[WhiteElo "2289"]
[BlackElo "1101"]
[TimeControl "300"]
[EndTime "4:51:19 PDT"]
[Termination "GEMdzq won by checkmate"]

1. e4 {[%clk 0:04:59]} 1... e6 {[%clk 0:04:59.5]} 2. d4 {[%clk 0:04:57.7]} 2...
d5 {[%clk 0:04:58.9]} 3. Nc3 {[%clk 0:04:57.4]} 3... Bb4 {[%clk 0:04:57.7]} 4.
e5 {[%clk 0:04:56.9]} 4... Ne7 {[%clk 0:04:57]} 5. Bd2 {[%clk 0:04:56.1]} 5...
c5 {[%clk 0:04:56.5]} 6. Nb5 {[%clk 0:04:54.9]} 6... Bxd2+ {[%clk 0:04:37.7]} 7.
Qxd2 {[%clk 0:04:54.8]} 7... Nf5 {[%clk 0:04:31]} 8. dxc5 {[%clk 0:04:48]} 8...
Nc6 {[%clk 0:04:29.4]} 9. Nd6+ {[%clk 0:04:46.1]} 9... Nxd6 {[%clk 0:04:27.6]}
10. exd6 {[%clk 0:04:46]} 10... Qf6 {[%clk 0:04:26.6]} 11. c3 {[%clk 0:04:40.2]}
11... O-O {[%clk 0:04:25.4]} 12. Nf3 {[%clk 0:04:39]} 12... b6 {[%clk
0:04:18.9]} 13. Bb5 {[%clk 0:04:24.5]} 13... Ne5 {[%clk 0:04:08.7]} 14. c6
{[%clk 0:03:47.3]} 14... Nxf3+ {[%clk 0:03:57.5]} 15. gxf3 {[%clk 0:03:47.2]}
15... Qxf3 {[%clk 0:03:56.2]} 16. Rg1 {[%clk 0:03:46.2]} 16... Qe4+ {[%clk
0:03:45.4]} 17. Be2 {[%clk 0:03:40.7]} 17... Rd8 {[%clk 0:03:28.4]} 18. Qg5
{[%clk 0:03:26.4]} 18... Ba6 {[%clk 0:03:22.9]} 19. Qxg7# {[%clk 0:03:25.4]} 1-0

[Event "Live Chess"]
[Site "Chess.com"]
[Date "2023.05.21"]
[Round "-"]
[White "Biranidun"]
[Black "Nakula1000"]
[Result "0-1"]
[WhiteElo "2514"]
[BlackElo "835"]
[TimeControl "300"]
[EndTime "4:51:29 PDT"]
[Termination "Nakula1000 won by resignation"]

1. e4 {[%clk 0:04:58.9]} 1... e5 {[%clk 0:04:56.1]} 2. Nf3 {[%clk 0:04:58]} 2...
Nc6 {[%clk 0:04:53.6]} 3. Bc4 {[%clk 0:04:57.3]} 3... Nf6 {[%clk 0:04:49.6]} 4.
Ng5 {[%clk 0:04:56.4]} 4... d5 {[%clk 0:04:47.7]} 5. exd5 {[%clk 0:04:56.3]}
5... Na5 {[%clk 0:04:46.1]} 6. Bb5+ {[%clk 0:04:55.7]} 6... c6 {[%clk
0:04:44.5]} 7. dxc6 {[%clk 0:04:55.6]} 7... bxc6 {[%clk 0:04:36.5]} 8. Bd3
{[%clk 0:04:54.8]} 8... Bg4 {[%clk 0:04:33]} 9. f3 {[%clk 0:04:49.7]} 9... Bh5
{[%clk 0:04:30.2]} 10. Qe2 {[%clk 0:04:48.7]} 10... Qd4 {[%clk 0:04:28]} 11. Nc3
{[%clk 0:04:44]} 11... Qh4+ {[%clk 0:04:25.9]} 12. g3 {[%clk 0:04:11.3]} 12...
Qxg5 {[%clk 0:04:09.2]} 13. a3 {[%clk 0:04:09.3]} 13... a6 {[%clk 0:03:35.2]}
14. b4 {[%clk 0:04:07.6]} 14... Nb7 {[%clk 0:03:33.4]} 15. Bb2 {[%clk
0:04:05.7]} 15... Nd8 {[%clk 0:03:09]} 16. Kf2 {[%clk 0:03:53.6]} 16... Nd7
{[%clk 0:02:57]} 17. Ne4 {[%clk 0:03:46.6]} 17... Qe7 {[%clk 0:02:36.6]} 18. Bc4
{[%clk 0:03:45.8]} 18... f5 {[%clk 0:02:35]} 19. Nc3 {[%clk 0:03:44.1]} 19...
Ne6 {[%clk 0:02:32.3]} 20. Rhe1 {[%clk 0:03:41.7]} 20... Ng5 {[%clk 0:02:29.7]}
21. Qd3 {[%clk 0:03:37.1]} 21... Bxf3 {[%clk 0:02:26.5]} 22. Qxf5 {[%clk
0:03:34.2]} 22... g6 {[%clk 0:02:22.4]} 23. Qd3 {[%clk 0:03:33.2]} 23... Nf6
{[%clk 0:02:14]} 24. h4 {[%clk 0:03:17.1]} 24... Ng4+ {[%clk 0:02:11.1]} 25. Kf1
{[%clk 0:03:15.4]} 25... Rd8 {[%clk 0:01:43]} 26. hxg5 {[%clk 0:03:04.2]} 26...
Rxd3 {[%clk 0:01:38.5]} 27. cxd3 {[%clk 0:03:04.1]} 27... Qxg5 {[%clk 0:01:28]}
28. Be6 {[%clk 0:02:51.8]} 28... Qh5 {[%clk 0:01:26.7]} 29. Bxg4 {[%clk
0:02:50.4]} 29... Qh1+ {[%clk 0:01:08.5]} 30. Kf2 {[%clk 0:02:36]} 30... Qg2+
{[%clk 0:01:07]} 0-1

[Event "Live Chess"]
[Site "Chess.com"]
[Date "2023.05.21"]
[Round "-"]
[White "Brooms1989"]
[Black "McSlash1"]
[Result "0-1"]
[WhiteElo "1137"]
[BlackElo "2003"]
[TimeControl "300"]
[EndTime "4:51:32 PDT"]
[Termination "McSlash1 won by checkmate"]

1. e4 {[%clk 0:04:58.3]} 1... c5 {[%clk 0:04:59.6]} 2. Nc3 {[%clk 0:04:57.1]}
2... Nc6 {[%clk 0:04:58.3]} 3. f4 {[%clk 0:04:56.4]} 3... g6 {[%clk 0:04:58]} 4.
Nf3 {[%clk 0:04:54.5]} 4... Bg7 {[%clk 0:04:57.5]} 5. Bb5 {[%clk 0:04:52.2]}
5... Nd4 {[%clk 0:04:55.6]} 6. Nxd4 {[%clk 0:04:49.3]} 6... cxd4 {[%clk
0:04:55.5]} 7. Be2 {[%clk 0:04:46.7]} 7... dxc3 {[%clk 0:04:54.1]} 8. dxc3
{[%clk 0:04:45.8]} 8... d6 {[%clk 0:04:53]} 9. O-O {[%clk 0:04:44.8]} 9... Nf6
{[%clk 0:04:46.9]} 10. e5 {[%clk 0:04:42]} 10... Qb6+ {[%clk 0:04:45.3]} 11. Kh1
{[%clk 0:04:40]} 11... Ne4 {[%clk 0:04:44.5]} 12. exd6 {[%clk 0:04:36.2]} 12...
Nf2+ {[%clk 0:04:35.9]} 13. Rxf2 {[%clk 0:04:34.3]} 13... Qxf2 {[%clk
0:04:35.8]} 14. dxe7 {[%clk 0:04:31.7]} 14... Be6 {[%clk 0:04:30.8]} 15. Bb5+
{[%clk 0:04:26.1]} 15... Kxe7 {[%clk 0:04:27.9]} 16. b3 {[%clk 0:04:22.5]} 16...
Rad8 {[%clk 0:04:26.1]} 17. Ba3+ {[%clk 0:04:20.6]} 17... Kf6 {[%clk 0:04:21.3]}
18. Qe1 {[%clk 0:03:48.4]} 18... Qxe1+ {[%clk 0:04:16.9]} 19. Rxe1 {[%clk
0:03:48.3]} 19... Rd2 {[%clk 0:04:14.1]} 20. g4 {[%clk 0:03:43.5]} 20... Bd5+
{[%clk 0:04:07.2]} 21. Kg1 {[%clk 0:03:41.8]} 21... g5 {[%clk 0:04:02.7]} 22.
fxg5+ {[%clk 0:03:39.7]} 22... Kxg5 {[%clk 0:04:02.6]} 23. Bc1 {[%clk
0:03:36.6]} 23... Bxc3 {[%clk 0:03:58.4]} 24. Bxd2+ {[%clk 0:03:33.4]} 24...
Bxd2 {[%clk 0:03:58.3]} 25. Re5+ {[%clk 0:03:32.3]} 25... Kxg4 {[%clk
0:03:53.7]} 26. Rxd5 {[%clk 0:03:31]} 26... Bf4 {[%clk 0:03:39.7]} 27. Rd4
{[%clk 0:03:25.8]} 27... Kf3 {[%clk 0:03:38.9]} 28. Bc4 {[%clk 0:03:19.1]} 28...
Be3+ {[%clk 0:03:37.2]} 29. Kf1 {[%clk 0:03:17.3]} 29... Bxd4 {[%clk 0:03:36.5]}
30. Bxf7 {[%clk 0:03:15.6]} 30... Rf8 {[%clk 0:03:30.9]} 31. Bd5+ {[%clk
0:03:12.5]} 31... Ke3+ {[%clk 0:03:29.5]} 32. Ke1 {[%clk 0:03:10.9]} 32... Bc3+
{[%clk 0:03:26.5]} 33. Kd1 {[%clk 0:03:08.8]} 33... Rf1# {[%clk 0:03:26]} 0-1

[Event "Live Chess"]
[Site "Chess.com"]
[Date "2023.05.21"]
[Round "-"]
[White "Pandreq"]
[Black "OleksiyJr1"]
[Result "0-1"]
[WhiteElo "1223"]
[BlackElo "1005"]
[TimeControl "300"]
[EndTime "4:51:33 PDT"]
[Termination "OleksiyJr1 won by resignation"]

1. d4 {[%clk 0:04:57.6]} 1... Nf6 {[%clk 0:04:57.1]} 2. c4 {[%clk 0:04:56.4]}
2... c6 {[%clk 0:04:56.3]} 3. Nc3 {[%clk 0:04:55.3]} 3... d5 {[%clk 0:04:52.9]}
4. cxd5 {[%clk 0:04:53.9]} 4... Nxd5 {[%clk 0:04:52.8]} 5. e4 {[%clk 0:04:52.4]}
5... Nxc3 {[%clk 0:04:51.9]} 6. bxc3 {[%clk 0:04:51.3]} 6... f6 {[%clk
0:04:50.5]} 7. Bc4 {[%clk 0:04:50.1]} 7... Nd7 {[%clk 0:04:49.4]} 8. Qh5+ {[%clk
0:04:37.6]} 8... g6 {[%clk 0:04:48]} 9. Qf3 {[%clk 0:04:35]} 9... e5 {[%clk
0:04:45.8]} 10. dxe5 {[%clk 0:04:30.4]} 10... Nxe5 {[%clk 0:04:45.7]} 11. Qe2
{[%clk 0:04:26.4]} 11... Nxc4 {[%clk 0:04:42.7]} 12. Qxc4 {[%clk 0:04:25.3]}
12... Bg7 {[%clk 0:04:34.4]} 13. Qd4 {[%clk 0:04:14.4]} 13... Be6 {[%clk
0:04:21.9]} 14. Nf3 {[%clk 0:04:06.2]} 14... O-O {[%clk 0:04:15.6]} 15. e5
{[%clk 0:03:52]} 15... Qxd4 {[%clk 0:03:58.6]} 16. cxd4 {[%clk 0:03:50.3]} 16...
fxe5 {[%clk 0:03:57.8]} 17. Nxe5 {[%clk 0:03:47.7]} 17... Bd5 {[%clk 0:03:53.8]}
18. O-O {[%clk 0:03:45.9]} 18... Rab8 {[%clk 0:03:47.8]} 19. Nd7 {[%clk
0:03:43.8]} 19... Bxd4 {[%clk 0:03:43.8]} 20. Nxb8 {[%clk 0:03:30.7]} 20... Bxa1
{[%clk 0:03:42.2]} 21. Nd7 {[%clk 0:03:27.5]} 21... Rd8 {[%clk 0:03:34.8]} 22.
Nc5 {[%clk 0:03:19.5]} 22... b6 {[%clk 0:03:27.9]} 23. Nb7 {[%clk 0:03:13.5]}
23... Rd7 {[%clk 0:03:22.9]} 24. Bh6 {[%clk 0:02:54.1]} 24... Bg7 {[%clk
0:02:52.1]} 25. Bf4 {[%clk 0:02:27.8]} 25... Rxb7 {[%clk 0:02:48.7]} 26. Re1
{[%clk 0:02:26.5]} 26... Bxa2 {[%clk 0:02:41.7]} 27. Re8+ {[%clk 0:02:19.4]}
27... Bf8 {[%clk 0:02:37.1]} 28. Bd6 {[%clk 0:02:16.3]} 28... Rf7 {[%clk
0:02:24.1]} 29. Ra8 {[%clk 0:02:02.8]} 29... Kg7 {[%clk 0:02:18.5]} 30. Be5+
{[%clk 0:02:00.3]} 30... Kh6 {[%clk 0:02:13.1]} 31. Bb8 {[%clk 0:01:45]} 31...
Rd7 {[%clk 0:02:00.5]} 32. g3 {[%clk 0:01:42.2]} 32... Bd5 {[%clk 0:01:48.5]}
33. Rxa7 {[%clk 0:01:37.6]} 33... Rxa7 {[%clk 0:01:44.2]} 34. Bxa7 {[%clk
0:01:36.6]} 34... b5 {[%clk 0:01:43.2]} 35. Bd4 {[%clk 0:01:34.7]} 35... b4
{[%clk 0:01:41.7]} 36. h4 {[%clk 0:01:33.7]} 36... g5 {[%clk 0:01:36.7]} 37. Be3
{[%clk 0:01:30.6]} 37... Be7 {[%clk 0:01:33.7]} 38. Kh2 {[%clk 0:01:22.8]} 38...
Kg6 {[%clk 0:01:30.8]} 39. Kh3 {[%clk 0:01:18.3]} 39... gxh4 {[%clk 0:01:27.2]}
40. gxh4 {[%clk 0:01:15.6]} 40... b3 {[%clk 0:01:26.6]} 41. Kg4 {[%clk
0:01:11.7]} 41... b2 {[%clk 0:01:25.4]} 42. h5+ {[%clk 0:01:08.8]} 42... Kf7
{[%clk 0:01:22.6]} 0-1